bitfinex/quotes_BTCUSD_20251212
["timestamp","ask_amount","ask_price","bid_price","bid_amount"]
[1765560186153,0.01106194,90400.0,90399.0,0.17994065]
[1765560186536,0.01106194,90400.0,90399.0,0.00121287]
[1765560186941,0.22124872,90396.0,90395.0,0.00141864]
[1765560187440,0.22124872,90396.0,90395.0,0.05113864]
[1765560187652,0.01106219,90398.0,90395.0,0.05113864]
[1765560187653,0.22124776,90397.0,90395.0,0.05235151]
[1765560187796,0.01106219,90398.0,90395.0,0.05235151]
[1765560187797,0.01106219,90398.0,90397.0,0.04972]
[1765560187997,0.22124628,90397.0,90395.0,0.00141864]
[1765560188182,0.26691628,90397.0,90395.0,0.00141864]
[1765560188596,1.11896,90396.0,90395.0,0.00141864]
[1765560188795,0.93616,90396.0,90395.0,0.00141864]
[1765560189217,0.51416,90396.0,90395.0,0.00141864]
[1765560189448,0.35397,90396.0,90395.0,0.00141864]
[1765560189589,0.40966,90396.0,90395.0,0.00141864]
[1765560190229,0.33637,90396.0,90395.0,0.00141864]
[1765560190427,0.41266,90396.0,90395.0,0.00141864]
[1765560190630,0.33937,90396.0,90395.0,0.00141864]
[1765560190829,0.2941,90396.0,90395.0,0.00141864]
[1765560191028,0.0034,90396.0,90395.0,0.00141864]
[1765560191459,0.006,90396.0,90395.0,0.09433642]
[1765560191653,0.003,90396.0,90395.0,0.09554929]
[1765560191881,0.003,90396.0,90395.0,0.38501046]
[1765560192087,0.005,90396.0,90395.0,0.38501046]
[1765560192691,0.005,90396.0,90395.0,0.43502885]
[1765560192903,0.01105962,90419.0,90418.0,0.04319778]
[1765560193193,0.01105937,90421.0,90420.0,0.04319778]
[1765560193800,0.00023818,90422.0,90421.0,0.04319778]
[1765560195375,0.00123818,90422.0,90421.0,0.04319778]
[1765560200487,0.0110595,90420.0,90417.0,0.02959]
[1765560200682,0.22119489,90418.0,90417.0,0.02959]
[1765560200936,0.22119489,90418.0,90401.0,0.04319778]
[1765560200937,0.0110617,90402.0,90401.0,0.04319778]
[1765560201078,0.22123893,90400.0,90397.0,0.04319778]
[1765560201298,0.22124383,90398.0,90397.0,0.04319778]
[1765560201633,0.22124872,90396.0,90395.0,0.00141864]
[1765560202811,0.22124872,90396.0,90395.0,0.16448929]
[1765560203011,0.22124872,90396.0,90395.0,0.04582929]
[1765560203675,0.22224872,90396.0,90395.0,0.04582929]
[1765560205104,0.22324872,90396.0,90395.0,0.04582929]
[1765560205709,0.22324872,90396.0,90395.0,0.16448929]
[1765560206233,0.22324872,90396.0,90395.0,0.09425929]
[1765560207237,0.27023872,90396.0,90395.0,0.00141864]
[1765560207405,0.34299872,90396.0,90395.0,0.00141864]
[1765560207603,0.27023872,90396.0,90395.0,0.00141864]
[1765560207815,0.34299872,90396.0,90395.0,0.00141864]
[1765560208527,0.34199872,90396.0,90395.0,0.00141864]
[1765560208732,1.34199872,90396.0,90395.0,0.00141864]
[1765560208931,1.63469872,90396.0,90395.0,0.00141864]
[1765560209186,1.74520634,90396.0,90395.0,0.00141864]
[1765560209477,1.24729872,90396.0,90395.0,1e-08]
[1765560209629,0.01106647,90363.0,90360.0,0.04319778]
[1765560209863,0.23239766,90363.0,90360.0,0.00132918]
[1765560210039,0.23239766,90363.0,90360.0,0.04452696]
[1765560210253,0.23239766,90363.0,90362.0,0.00098333]
[1765560212100,0.35174766,90363.0,90362.0,0.00098333]
[1765560212326,0.35174766,90363.0,90362.0,0.00198333]
[1765560212677,0.35174766,90363.0,90362.0,0.00098333]
[1765560212901,0.68556265,90363.0,90362.0,0.00098333]
[1765560213122,1.64244766,90363.0,90362.0,0.00098333]
[1765560213341,1.68556265,90363.0,90362.0,0.00098333]
[1765560213548,1.15124766,90363.0,90362.0,0.00098333]
[1765560213976,1.26175528,90363.0,90362.0,0.00098333]
[1765560214212,1.64444766,90363.0,90362.0,0.00098333]
[1765560214424,1.68756265,90363.0,90362.0,0.00098333]
[1765560214628,1.68956265,90363.0,90362.0,0.00098333]
[1765560215052,1.68756265,90363.0,90362.0,0.00098333]
[1765560215254,1.68856265,90363.0,90362.0,0.00098333]
[1765560215641,1.64844766,90363.0,90362.0,0.00098333]
[1765560215875,1.64244766,90363.0,90362.0,0.00098333]
[1765560216079,1.64544766,90363.0,90362.0,0.00098333]
[1765560216322,1.64844766,90363.0,90362.0,0.00098333]
[1765560217156,1.69156265,90363.0,90362.0,0.00098333]
[1765560217354,1.79907027,90363.0,90362.0,0.00098333]
[1765560217787,1.80207027,90363.0,90362.0,0.00098333]
[1765560218165,1.79907027,90363.0,90362.0,0.00098333]
[1765560218616,1.80207027,90363.0,90362.0,0.00098333]
[1765560218961,1.80207027,90363.0,90362.0,1e-08]
[1765560219764,1.69156265,90363.0,90362.0,1e-08]
[1765560219986,0.98584766,90363.0,90362.0,1e-08]
[1765560220304,1.64844766,90363.0,90362.0,1e-08]
[1765560220506,1.66604766,90363.0,90362.0,1e-08]
[1765560221454,0.88874766,90363.0,90362.0,1e-08]
[1765560221654,0.93186265,90363.0,90362.0,1e-08]
[1765560221791,1.05227367,90363.0,90362.0,1e-08]
[1765560222232,1.82057367,90363.0,90362.0,1e-08]
[1765560222452,1.82357367,90363.0,90362.0,1e-08]
[1765560222659,1.86668866,90363.0,90362.0,1e-08]
[1765560222848,1.86368866,90363.0,90362.0,1e-08]
[1765560223057,1.86668866,90363.0,90362.0,1e-08]
[1765560223211,1.95014625,90363.0,90362.0,1e-08]
[1765560223430,1.99326124,90363.0,90362.0,1e-08]
[1765560223601,1.99626124,90363.0,90362.0,1e-08]
[1765560224151,1.99326124,90363.0,90362.0,1e-08]
[1765560224581,1.99726124,90363.0,90362.0,1e-08]
[1765560224920,1.99726124,90363.0,90350.0,0.0004]
[1765560224921,0.0110677,90353.0,90350.0,0.0004]
[1765560225279,0.01107015,90333.0,90330.0,0.0004]
[1765560225438,1.26799793,90331.0,90330.0,0.0004]
[1765560225636,0.74429793,90331.0,90330.0,0.0004]
[1765560225843,0.95596555,90331.0,90330.0,0.0004]
[1765560226199,1.75956555,90331.0,90330.0,0.00135403]
[1765560226771,1.19845793,90331.0,90330.0,0.00135403]
[1765560227036,1.20045793,90331.0,90330.0,0.00135403]
[1765560227157,1.65105793,90331.0,90330.0,0.00135403]
[1765560227358,0.51410793,90331.0,90330.0,0.00135403]
[1765560227812,0.51610793,90331.0,90330.0,0.00135403]
[1765560228038,0.51610793,90331.0,90330.0,0.04455181]
[1765560228183,0.51410793,90331.0,90330.0,0.04455181]
[1765560228384,0.63145793,90331.0,90330.0,0.00135403]
[1765560228607,0.63245793,90331.0,90330.0,0.00135403]
[1765560228810,0.63345793,90331.0,90330.0,0.00135403]
[1765560229016,0.63385793,90331.0,90330.0,0.00135403]
[1765560229419,0.76133829,90331.0,90330.0,0.00135403]
[1765560230070,0.65145793,90331.0,90330.0,0.00135403]
[1765560230482,1.69457292,90331.0,90330.0,0.00135403]
[1765560230595,1.65145793,90331.0,90330.0,0.00135403]
[1765560231222,0.66074228,90331.0,90330.0,0.00135403]
[1765560231425,1.65145793,90331.0,90330.0,0.00135403]
[1765560231847,0.95365793,90331.0,90330.0,0.00135403]
[1765560232162,0.97683409,90331.0,90330.0,0.00135403]
[1765560232364,1.66174604,90331.0,90330.0,0.00135403]
[1765560232503,1.66374604,90331.0,90330.0,0.00135403]
[1765560232703,1.66174604,90331.0,90330.0,0.00135403]
[1765560232912,1.46294604,90331.0,90330.0,0.00135403]
[1765560233109,1.48294604,90331.0,90330.0,0.00135403]
[1765560233312,1.77425366,90331.0,90330.0,0.00135403]
[1765560234122,1.81736865,90331.0,90330.0,0.00135403]
[1765560234752,1.82427205,90331.0,90330.0,1e-08]
[1765560234959,1.86738704,90331.0,90330.0,1e-08]
[1765560235403,1.51215696,90311.0,90300.0,0.0004]
[1765560235713,1.51218148,90301.0,90300.0,0.0004]
[1765560235836,1.60459647,90301.0,90300.0,0.0004]
[1765560236041,1.67675647,90301.0,90300.0,0.0004]
[1765560236681,1.64393642,90301.0,90300.0,0.00078833]
[1765560237105,1.64693642,90301.0,90300.0,0.00078833]
[1765560237474,1.64393642,90301.0,90300.0,0.00078833]
[1765560238037,1.66653642,90301.0,90300.0,0.00078833]
[1765560238248,0.80873642,90301.0,90300.0,0.00078833]
[1765560238449,0.95826401,90301.0,90300.0,0.00078833]
[1765560238650,0.87733642,90301.0,90300.0,0.00078833]
[1765560238924,0.59337642,90301.0,90300.0,0.00078833]
[1765560239126,0.57577642,90301.0,90300.0,0.00078833]
[1765560239514,0.59337642,90301.0,90300.0,0.00078833]
[1765560240116,0.59137642,90301.0,90300.0,0.00078833]
[1765560240503,0.01329494,90301.0,90300.0,0.0020012]
[1765560240700,0.01129494,90301.0,90300.0,0.16519898]
[1765560240901,0.01129494,90301.0,90300.0,0.04519898]
[1765560241100,0.01229494,90301.0,90300.0,0.09464384]
[1765560241556,0.01229494,90301.0,90300.0,0.12289606]
[1765560241807,0.01229494,90301.0,90300.0,0.16609384]
[1765560241978,0.01129494,90301.0,90300.0,0.16609384]
[1765560242163,0.01029494,90301.0,90300.0,0.38857778]
[1765560242365,0.01029494,90301.0,90300.0,0.16809384]
[1765560243165,0.23177642,90301.0,90300.0,0.00489606]
[1765560243777,0.23177642,90301.0,90300.0,0.00368319]
[1765560243778,0.35323642,90301.0,90300.0,0.00368319]
[1765560243944,0.23177642,90301.0,90300.0,0.00368319]
[1765560244313,0.28107642,90301.0,90300.0,0.00368319]
[1765560244547,0.35323642,90301.0,90300.0,0.00268319]
[1765560245130,0.35323642,90301.0,90300.0,0.00168319]
[1765560245720,0.64393642,90301.0,90300.0,0.00168319]
[1765560246529,0.64393642,90301.0,90291.0,9e-05]
[1765560246530,0.22150356,90292.0,90291.0,9e-05]
[1765560246732,0.40522585,90292.0,90291.0,9e-05]
[1765560247120,0.69592585,90292.0,90291.0,9e-05]
[1765560248120,0.69592585,90292.0,90291.0,0.00109]
[1765560248323,0.69592585,90292.0,90291.0,9e-05]
[1765560248559,0.69592585,90292.0,90291.0,0.00109]
[1765560248715,0.69792585,90292.0,90291.0,0.00109]
[1765560249128,0.69592585,90292.0,90291.0,9e-05]
[1765560249323,0.69792585,90292.0,90291.0,9e-05]
[1765560249915,0.69592585,90292.0,90291.0,9e-05]
[1765560250123,0.80683347,90292.0,90291.0,9e-05]
[1765560250330,1.9257213,90292.0,90291.0,9e-05]
[1765560250656,0.22157964,90261.0,90260.0,0.0004]
[1765560251016,0.23265523,90263.0,90260.0,0.0004]
[1765560251141,0.22157718,90262.0,90260.0,0.00161287]
[1765560251340,0.22157718,90262.0,90261.0,0.04319778]
[1765560251566,0.22157718,90262.0,90261.0,0.16441065]
[1765560251930,0.01107812,90268.0,90267.0,0.04319778]
[1765560252213,0.02139135,90268.0,90267.0,0.09174778]
[1765560252714,0.01031323,90268.0,90267.0,0.16539553]
[1765560252875,0.01107787,90270.0,90269.0,0.04319778]
[1765560253222,0.01031783,90270.0,90269.0,0.04441065]
[1765560253434,0.01107579,90287.0,90286.0,0.04319778]
[1765560253579,0.24291082,90287.0,90286.0,0.04319778]
[1765560255281,0.01107628,90283.0,90279.0,0.04319778]
[1765560255419,0.01107444,90298.0,90297.0,0.04319778]
[1765560255760,0.02139807,90298.0,90297.0,0.04319778]
[1765560256374,0.01032415,90298.0,90297.0,0.04319778]
[1765560256545,0.0107115,90298.0,90297.0,0.04319778]
[1765560256745,0.23220034,90298.0,90297.0,0.04319778]
[1765560256950,0.0107115,90298.0,90297.0,0.09174778]
[1765560257132,0.23220034,90298.0,90297.0,0.09174778]
[1765560257536,0.23220034,90298.0,90297.0,0.04319778]
[1765560258089,0.22151583,90287.0,90286.0,0.04441065]
[1765560258222,0.23183998,90287.0,90286.0,0.04441065]
[1765560258422,0.23183998,90287.0,90286.0,0.16245065]
[1765560258808,0.23183998,90287.0,90286.0,0.00121287]
[1765560258994,0.22154037,90277.0,90276.0,0.04319778]
[1765560259815,0.22153316,90281.0,90276.0,0.34079526]
[1765560259816,0.01107652,90281.0,90276.0,0.34079526]
[1765560259955,0.23261223,90279.0,90278.0,0.04319778]
[1765560260587,0.23261223,90279.0,90278.0,0.09041778]
[1765560260789,0.01107652,90281.0,90280.0,0.04319778]
[1765560260997,0.01107554,90289.0,90288.0,0.04319778]
[1765560261196,0.24292783,90289.0,90288.0,0.04319778]
[1765560261433,0.24292783,90289.0,90288.0,0.07049778]
[1765560261777,0.22153055,90281.0,90279.0,0.02703]
[1765560261928,0.22153055,90281.0,90280.0,0.00321287]
[1765560262132,0.22153055,90281.0,90280.0,0.004]
[1765560262296,0.01107714,90276.0,90273.0,0.02703]
[1765560262500,0.01107714,90276.0,90273.0,0.02824287]
[1765560262699,0.01107689,90278.0,90277.0,0.04319778]
[1765560262942,0.01107689,90278.0,90277.0,0.04441065]
[1765560263115,0.01147554,90289.0,90281.0,0.01107652]
[1765560263422,0.01107517,90292.0,90291.0,0.04319778]
[1765560263624,0.01035082,90292.0,90291.0,0.16023065]
[1765560263948,0.01146179,90298.0,90294.0,0.22149639]
[1765560264114,0.01146179,90298.0,90297.0,0.04722]
[1765560264344,0.01074342,90298.0,90297.0,0.09163065]
[1765560264543,0.01074342,90298.0,90297.0,0.38172195]
[1765560264743,0.00038735,90298.0,90297.0,0.38172195]
[1765560265418,0.00038735,90298.0,90297.0,0.38372195]
[1765560266013,0.00038735,90298.0,90297.0,0.38772195]
[1765560266867,0.00038735,90298.0,90297.0,0.43574034]
[1765560267088,0.00038735,90298.0,90297.0,0.72944034]
[1765560267276,0.00038735,90298.0,90297.0,0.72244034]
[1765560267480,0.00038735,90298.0,90297.0,0.72644034]
[1765560267699,0.00038735,90298.0,90297.0,0.09863065]
[1765560267842,0.22187619,90298.0,90297.0,0.00821287]
[1765560268451,0.22187619,90298.0,90297.0,0.00121287]
[1765560268648,0.22187619,90298.0,90297.0,0.00521287]
[1765560268850,0.22187619,90298.0,90297.0,0.00821287]
[1765560270423,0.22187619,90298.0,90297.0,0.00121287]
[1765560270553,0.22187619,90298.0,90297.0,0.00321287]
[1765560271157,0.00038735,90298.0,90297.0,0.04741065]
[1765560271357,0.00038735,90298.0,90297.0,0.16323065]
[1765560271793,0.00038735,90298.0,90297.0,0.38472195]
[1765560273597,0.00038735,90298.0,90297.0,0.43174034]
[1765560273987,0.01107076,90328.0,90318.0,0.04319778]
[1765560274189,0.01107088,90327.0,90318.0,0.13714668]
[1765560274363,0.01107076,90328.0,90318.0,0.13714668]
[1765560274364,0.01107002,90334.0,90318.0,0.20574668]
[1765560274596,0.01107064,90329.0,90318.0,0.20574668]
[1765560274799,0.01107002,90334.0,90318.0,0.20574668]
[1765560275013,0.01106941,90339.0,90318.0,0.20574668]
[1765560275183,0.01106953,90338.0,90318.0,0.20574668]
[1765560275411,0.01106929,90340.0,90318.0,0.20674668]
[1765560275614,0.01106904,90342.0,90318.0,0.25676507]
[1765560275615,0.01106917,90341.0,90318.0,0.25676507]
[1765560275822,0.01106904,90342.0,90318.0,0.25676507]
[1765560276025,0.01106953,90338.0,90318.0,0.25676507]
[1765560276310,0.01106941,90339.0,90318.0,0.25676507]
[1765560276678,0.01106917,90341.0,90318.0,0.25776507]
[1765560276888,0.01106917,90341.0,90318.0,0.25576507]
[1765560277101,0.01106929,90340.0,90318.0,0.25776507]
[1765560277316,0.01106941,90339.0,90318.0,0.25976507]
[1765560277518,0.01106941,90339.0,90318.0,0.25576507]
[1765560277701,0.01106929,90340.0,90318.0,0.25576507]
[1765560277899,0.01106941,90339.0,90318.0,0.26076507]
[1765560278195,0.01106941,90339.0,90318.0,0.25876507]
[1765560278513,0.01106978,90336.0,90318.0,0.26176507]
[1765560278718,0.01107088,90327.0,90318.0,0.21174668]
[1765560278918,0.01107149,90322.0,90318.0,0.20874668]
[1765560279372,0.23250623,90321.0,90318.0,0.14014668]
[1765560279569,0.23250623,90321.0,90318.0,0.09292668]
[1765560279776,0.01107149,90322.0,90318.0,0.13714668]
[1765560280015,0.2325043,90321.0,90318.0,0.20574668]
[1765560280438,0.2325043,90321.0,90318.0,0.0219289]
[1765560280636,0.08088213,90319.0,90318.0,0.00611603]
[1765560280854,0.08128213,90319.0,90318.0,0.00011603]
[1765560281054,0.15280213,90319.0,90318.0,0.00011603]
[1765560281201,0.15280213,90319.0,90318.0,0.00311603]
[1765560281202,0.03606213,90319.0,90318.0,0.00311603]
[1765560282029,0.03606213,90319.0,90318.0,0.00411603]
[1765560282843,0.03606213,90319.0,90318.0,0.00111603]
[1765560283350,0.37423947,90319.0,90318.0,0.00211603]
[1765560283557,0.7919274,90319.0,90318.0,0.00211603]
[1765560283853,0.68253947,90319.0,90318.0,0.00211603]
[1765560284055,0.66493947,90319.0,90318.0,0.00211603]
[1765560284254,0.68253947,90319.0,90318.0,0.00211603]
[1765560284430,0.68253947,90319.0,90318.0,0.00111603]
[1765560284992,0.68253947,90319.0,90318.0,0.00011603]
[1765560285163,0.39183947,90319.0,90318.0,0.00011603]
[1765560285322,0.39683947,90319.0,90318.0,0.00011603]
[1765560285525,0.26249947,90319.0,90318.0,0.00011603]
[1765560285914,0.22786947,90319.0,90318.0,0.00011603]
[1765560286580,0.22286947,90319.0,90318.0,0.00011603]
[1765560286783,0.22486947,90319.0,90318.0,0.00011603]
[1765560286982,0.30295947,90319.0,90318.0,0.00011603]
[1765560287199,0.25673947,90319.0,90318.0,0.00011603]
[1765560287408,0.25573947,90319.0,90318.0,0.00011603]
[1765560287613,0.30095947,90319.0,90318.0,0.00011603]
[1765560288587,0.25573947,90319.0,90318.0,0.00011603]
[1765560289936,0.25673947,90319.0,90318.0,0.00011603]
[1765560290062,0.25573947,90319.0,90318.0,0.00011603]
[1765560290274,0.25673947,90319.0,90318.0,0.00011603]
[1765560290944,0.25573947,90319.0,90318.0,0.00011603]
[1765560291390,0.22286947,90319.0,90318.0,0.00011603]
[1765560295659,0.33248947,90319.0,90318.0,0.00011603]
[1765560296044,0.26776947,90319.0,90318.0,0.00011603]
[1765560296747,0.26776947,90319.0,90318.0,0.08661381]
[1765560296748,0.00143213,90319.0,90318.0,0.08661381]
[1765560296884,0.00143213,90319.0,90318.0,0.15090381]
[1765560297082,0.00103213,90319.0,90318.0,0.08661381]
[1765560297625,0.22246947,90319.0,90318.0,0.04331381]
[1765560298035,0.00103213,90319.0,90318.0,0.37355648]
[1765560298553,0.00103213,90319.0,90318.0,0.15211668]
[1765560298713,0.00103213,90319.0,90318.0,0.37355648]
[1765560299498,0.00103213,90319.0,90318.0,0.37555648]
[1765560299924,0.00103213,90319.0,90318.0,0.37855648]
[1765560300123,0.00103213,90319.0,90318.0,0.15711668]
[1765560300327,0.00103213,90319.0,90318.0,0.09282668]
[1765560300527,0.00103213,90319.0,90318.0,0.00511603]
[1765560300528,0.06450014,90319.0,90318.0,0.00511603]
[1765560300857,0.01960014,90319.0,90318.0,0.00511603]
[1765560301003,0.02000014,90319.0,90318.0,0.00511603]
[1765560301208,0.02000014,90319.0,90318.0,0.00211603]
[1765560301410,0.00143213,90319.0,90318.0,0.00211603]
[1765560301706,0.00143213,90319.0,90318.0,0.04631381]
[1765560301907,0.00143213,90319.0,90318.0,0.00311603]
[1765560302120,0.00143213,90319.0,90318.0,0.00111603]
[1765560302296,0.12962014,90319.0,90318.0,0.00111603]
[1765560302495,0.12962014,90319.0,90318.0,0.00211603]
[1765560302794,0.06490014,90319.0,90318.0,0.00211603]
[1765560303088,0.12962014,90319.0,90318.0,0.00211603]
[1765560303660,0.17122703,90319.0,90318.0,0.00211603]
[1765560303862,1.46192703,90319.0,90318.0,0.00211603]
[1765560304073,1.48647401,90319.0,90318.0,0.00211603]
[1765560304265,1.48647401,90319.0,90286.0,0.02679]
[1765560304266,0.22150111,90293.0,90286.0,0.02679]
[1765560304475,0.2993572,90293.0,90279.0,0.02679]
[1765560304673,0.2993572,90293.0,90281.0,0.01107652]
[1765560304882,0.2993572,90293.0,90279.0,0.02679]
[1765560305076,0.2993572,90293.0,90279.0,0.03786677]
[1765560305275,0.2993572,90293.0,90281.0,0.04319778]
[1765560305494,0.2993572,90293.0,90283.0,0.04319778]
[1765560305698,0.2220172,90293.0,90284.0,0.01107615]
[1765560305898,0.2220172,90293.0,90290.0,0.04319778]
[1765560306103,0.2216172,90293.0,90292.0,0.0435387]
[1765560306305,0.00011609,90293.0,90292.0,0.0435387]
[1765560307415,0.00011609,90293.0,90292.0,0.0445387]
[1765560307618,0.2216172,90293.0,90292.0,0.0012387]
[1765560307819,0.2216172,90293.0,90292.0,0.0002387]
[1765560308342,0.2216172,90293.0,90292.0,0.0012387]
[1765560309094,0.3312372,90293.0,90292.0,0.0012387]
[1765560309764,0.3316372,90293.0,90292.0,0.0012387]
[1765560309917,0.74176364,90293.0,90292.0,0.0002387]
[1765560310123,1.78487863,90293.0,90292.0,0.0002387]
[1765560310322,1.78487863,90293.0,90253.0,0.02564]
[1765560310323,0.22157964,90261.0,90253.0,0.1037561]
[1765560310540,0.26687964,90261.0,90251.0,0.0781161]
[1765560310743,0.33159964,90261.0,90251.0,0.0781161]
[1765560311167,0.33159964,90261.0,90250.0,0.0785161]
[1765560311345,0.22197964,90261.0,90250.0,0.0785161]
[1765560311526,0.22209567,90261.0,90251.0,0.0110802]
[1765560311730,0.00051603,90261.0,90258.0,0.22158653]
[1765560311948,0.00011603,90261.0,90260.0,0.10920287]
[1765560312150,0.00011603,90261.0,90260.0,0.1565381]
[1765560312349,0.00111603,90261.0,90260.0,0.00161287]
[1765560312548,0.00111603,90261.0,90260.0,0.15240065]
[1765560313162,0.00011603,90261.0,90260.0,0.15240065]
[1765560314365,0.00011603,90261.0,90260.0,0.15340065]
[1765560314559,0.10973603,90261.0,90260.0,0.0034]
[1765560314761,0.11013603,90261.0,90260.0,0.0034]
[1765560315746,1.11013603,90261.0,90260.0,0.0034]
[1765560315956,1.11013603,90261.0,90260.0,0.00235515]
[1765560316159,1.11013603,90261.0,90260.0,0.00135515]
[1765560316361,1.11013603,90261.0,90260.0,0.00235515]
[1765560316362,1.12773603,90261.0,90260.0,0.00235515]
[1765560316890,0.11013603,90261.0,90260.0,0.00135515]
[1765560317027,0.12773603,90261.0,90260.0,0.00135515]
[1765560317225,0.04641603,90261.0,90260.0,0.00135515]
[1765560317560,0.01911603,90261.0,90260.0,0.00135515]
[1765560317772,0.01811603,90261.0,90260.0,0.00135515]
[1765560318079,0.06401603,90261.0,90260.0,0.00135515]
[1765560318245,0.13116603,90261.0,90260.0,0.00135515]
[1765560318427,1.13116603,90261.0,90260.0,0.00135515]
[1765560318766,1.42186603,90261.0,90260.0,0.00135515]
[1765560320040,1.47444343,90261.0,90260.0,0.00135515]
[1765560320245,1.04311499,90252.0,90250.0,0.0004]
[1765560320444,1.29676419,90251.0,90250.0,0.0004]
[1765560320674,1.36027419,90251.0,90250.0,0.0004]
[1765560321019,1.36027419,90251.0,90250.0,0.00069857]
[1765560321020,0.64497419,90251.0,90250.0,0.00069857]
[1765560321220,1.37787419,90251.0,90250.0,0.00069857]
[1765560321759,1.37791419,90251.0,90250.0,0.00069857]
[1765560321974,1.37991419,90251.0,90250.0,0.00069857]
[1765560322196,0.55544373,90241.0,90240.0,0.0004]
[1765560322407,0.55624874,90241.0,90240.0,0.0004]
[1765560322769,0.51242703,90201.0,90181.0,0.01618392]
[1765560322912,0.51242703,90201.0,90180.0,0.0004]
[1765560322913,0.51245161,90191.0,90180.0,0.0004]
[1765560323118,0.55637161,90191.0,90180.0,0.0004]
[1765560323480,0.61988161,90191.0,90180.0,0.0004]
[1765560323953,0.61999751,90191.0,90180.0,0.0004]
[1765560324157,1.63963751,90191.0,90180.0,0.0004]
[1765560324412,1.6827525,90191.0,90180.0,0.0004]
[1765560324836,1.73477089,90191.0,90180.0,0.0004]
[1765560324974,0.60560958,90181.0,90180.0,0.0004]
[1765560325161,1.64952958,90181.0,90180.0,0.0004]
[1765560325356,1.64952958,90181.0,90168.0,9e-05]
[1765560325357,0.22180572,90169.0,90168.0,9e-05]
[1765560325619,1.66255572,90169.0,90168.0,9e-05]
[1765560325815,1.70567071,90169.0,90168.0,9e-05]
[1765560326156,1.7380491,90169.0,90168.0,9e-05]
[1765560326414,1.7384491,90169.0,90168.0,9e-05]
[1765560326619,1.7384491,90169.0,90150.0,0.0004]
[1765560326620,1.2218254,90161.0,90150.0,0.0004]
[1765560326826,1.51255,90151.0,90150.0,0.0004]
[1765560326968,1.58811,90151.0,90150.0,0.0004]
[1765560327170,1.65162,90151.0,90150.0,0.0004]
[1765560327770,1.65173582,90151.0,90150.0,0.0004]
[1765560328214,1.65273582,90151.0,90150.0,0.00338918]
[1765560328417,1.37627582,90151.0,90150.0,0.00338918]
[1765560328785,1.35863582,90151.0,90150.0,0.00338918]
[1765560328994,0.67237582,90151.0,90150.0,0.00338918]
[1765560329507,1.71549081,90151.0,90150.0,0.00338918]
[1765560330739,0.96097582,90151.0,90150.0,0.00338918]
[1765560330951,0.65473582,90151.0,90150.0,0.00338918]
[1765560332102,0.58822582,90151.0,90150.0,0.00338918]
[1765560332313,0.54430582,90151.0,90150.0,0.00338918]
[1765560332530,0.25660582,90151.0,90150.0,0.00338918]
[1765560332707,0.36403582,90151.0,90150.0,0.00338918]
[1765560332856,0.36203582,90151.0,90150.0,0.00338918]
[1765560333283,0.29952582,90151.0,90150.0,0.00338918]
[1765560333638,0.00251582,90151.0,90150.0,0.00338918]
[1765560333846,0.00111582,90151.0,90150.0,0.00338918]
[1765560333962,0.00111582,90151.0,90150.0,0.04658696]
[1765560334617,0.00111582,90151.0,90150.0,0.04779983]
[1765560334791,0.00011582,90151.0,90150.0,0.04779983]
[1765560334969,0.00011582,90151.0,90150.0,0.04879983]
[1765560335369,0.00011582,90151.0,90150.0,0.16112542]
[1765560335570,0.00011582,90151.0,90150.0,0.11377205]
[1765560335801,0.00011582,90151.0,90150.0,0.15696983]
[1765560336447,0.00011582,90151.0,90150.0,0.15596983]
[1765560336603,0.00011582,90151.0,90150.0,0.15896983]
[1765560337004,0.00011582,90151.0,90150.0,0.17760983]
[1765560337211,0.00011582,90151.0,90150.0,0.17660983]
[1765560337553,0.00011582,90151.0,90150.0,0.17960983]
[1765560337947,0.00011582,90151.0,90150.0,0.17360983]
[1765560338318,0.00011582,90151.0,90150.0,0.18060983]
[1765560338515,0.00011582,90151.0,90150.0,0.17760983]
[1765560338791,0.00011582,90151.0,90150.0,0.17360983]
[1765560338954,0.00011582,90151.0,90150.0,0.17660983]
[1765560339160,0.00011582,90151.0,90150.0,0.17960983]
[1765560339566,0.00011582,90151.0,90150.0,0.17660983]
[1765560339976,0.00011582,90151.0,90150.0,0.17860983]
[1765560340769,0.00011582,90151.0,90150.0,0.17560983]
[1765560340980,0.00011582,90151.0,90150.0,0.17860983]
[1765560341389,0.00011582,90151.0,90150.0,0.17360983]
[1765560341594,0.00011582,90151.0,90150.0,0.18060983]
[1765560341999,0.00011582,90151.0,90150.0,0.17660983]
[1765560342243,0.00011582,90151.0,90150.0,0.18060983]
[1765560342448,0.00011582,90151.0,90150.0,0.17760983]
[1765560342663,0.01108844,90184.0,90150.0,0.52232822]
[1765560342878,0.01120479,90184.0,90183.0,0.04319778]
[1765560343083,0.01108905,90179.0,90176.0,0.02356]
[1765560343523,0.22178358,90178.0,90176.0,0.02356]
[1765560343727,0.01109028,90169.0,90168.0,0.04319778]
[1765560343933,0.01108979,90173.0,90171.0,0.04319778]
[1765560344143,0.01108942,90176.0,90175.0,0.04319778]
[1765560344356,0.0004,90178.0,90177.0,0.06654778]
[1765560344561,0.01108881,90181.0,90180.0,0.04319778]
[1765560344975,0.01108868,90182.0,90181.0,0.04319778]
[1765560345193,0.00011635,90184.0,90183.0,0.04319778]
[1765560345431,0.01036861,90184.0,90183.0,0.08718778]
[1765560345839,0.00111635,90184.0,90183.0,0.08718778]
[1765560346051,0.00111635,90184.0,90183.0,0.04319778]
[1765560346263,0.01108954,90175.0,90174.0,0.04319778]
[1765560346469,0.01109065,90166.0,90163.0,0.06083778]
[1765560346679,0.22181802,90164.0,90163.0,0.04319778]
[1765560347917,0.22181802,90164.0,90163.0,0.04619778]
[1765560348540,0.23212102,90164.0,90163.0,0.04619778]
[1765560348752,0.010303,90164.0,90163.0,0.04619778]
[1765560348960,0.010303,90164.0,90163.0,0.09400086]
[1765560349169,0.01109065,90166.0,90165.0,0.04319778]
[1765560349370,0.0213933,90166.0,90165.0,0.04319778]
[1765560349892,0.01030265,90166.0,90165.0,0.15258065]
[1765560350107,0.01030265,90166.0,90165.0,0.37439621]
[1765560350637,0.01030265,90166.0,90165.0,0.66709621]
[1765560351219,0.02139133,90182.0,90181.0,0.04319778]
[1765560351414,0.24322303,90182.0,90181.0,0.04319778]
[1765560351617,0.24322361,90182.0,90181.0,0.04319778]
[1765560352399,0.26713467,90182.0,90181.0,0.04319778]
[1765560353193,0.22179342,90174.0,90173.0,0.04319778]
[1765560353344,0.23289868,90168.0,90167.0,0.04319778]
[1765560353545,0.24325987,90168.0,90167.0,0.04319778]
[1765560354709,0.01036119,90168.0,90167.0,0.36501129]
[1765560355476,0.01036119,90168.0,90167.0,0.38265129]
[1765560356291,0.00011635,90184.0,90183.0,0.22177128]
[1765560356498,0.00011635,90184.0,90183.0,0.04319778]
[1765560356499,0.03442958,90184.0,90183.0,0.04319778]
[1765560357502,0.03442958,90184.0,90183.0,0.14198778]
[1765560357935,0.03442958,90184.0,90183.0,0.14320065]
[1765560358303,0.03442946,90184.0,90183.0,0.14320065]
[1765560358484,0.03542946,90184.0,90183.0,0.14320065]
[1765560359146,0.01150076,90184.0,90183.0,0.14320065]